Cogmind - Beta 16 @@@ ROGUE MODE // 2025.11.01 @ 18:25:43 Player: ArsMori Result: Destroyed by US-X6I(R) with Subdweller Laser Performance ------------- Evolutions (0) 0 Regions Visited (2) 400 Robots Destroyed (8) 40 Value Destroyed (155) 155 Prototype IDs (0) 0 Alien Tech Used (0) 0 Bonus (-10) -10 TOTAL SCORE: 585 Bonus ------- Friendly Fire -10 Cogmind --------- Core Integrity 0/250 Matter 300/300 Energy 61/100 System Corruption 0% Temperature Cool (12) Movement Rolling (80) Location -10/Subcaves Parts ------- > --- POWER (1) -------- (None) > --- PROPULSION (2) --- Myomer Leg Wheel > --- UTILITY (2) ------ Subdweller Optics Targeting Computer > --- WEAPON (2) ------- Light Assault Rifle Flamer > --- INVENTORY (5) ---- Medium Matter Pod (100) Sensor Array Small Laser Grenade Launcher Scrap Shield Fragment (49) Peak State ------------ > --- POWER ------------ Neutrino Core > --- PROPULSION ------- Aluminum Leg Myomer Leg > --- UTILITY ---------- (None) > --- WEAPON ----------- Small Laser Light Assault Rifle > --- INVENTORY -------- Medium Matter Pod Sensor Array Small Laser Grenade Launcher [Rating: 16] Favorites ----------- Power Ion Engine Engine Ion Engine Power Core Neutrino Core Propulsion Aluminum Leg Leg Aluminum Leg Wheel Wheel Utility Scrap Shield Device Subdweller Optics Storage Medium Matter Pod Processor Targeting Computer Protection Scrap Shield Weapon Small Laser Energy Gun Small Laser Ballistic Gun Light Assault Rifle Special Weapon Flamer Build | -11 -10 -10 ------- Run | Yrd Mat Sub Slots Evolved . | . . . Power . | . . . Propulsion . | . . . Utility . | . . . Weapon . | . . . Parts Attached 17 | 6 3 8 Power 3 | 2 . 1 Engine 2 | 2 . . Core 1 | . . 1 Reactor . | . . . Propulsion 5 | 2 1 2 Treads . | . . . Leg 4 | 2 1 1 Wheel 1 | . . 1 Hover . | . . . Flight . | . . . Utility 5 | . 2 3 Device 2 | . 1 1 Storage 1 | . 1 . Processor 1 | . . 1 Hackware . | . . . Protection 1 | . . 1 Artifact . | . . . Weapon 4 | 2 . 2 Energy Gun 2 | 2 . . Energy Cannon . | . . . Ballistic Gun 1 | . . 1 Ballistic Cannon . | . . . Launcher . | . . . Special Weapon 1 | . . 1 Impact Weapon . | . . . Slashing Weapon . | . . . Piercing Weapon . | . . . Special Melee Weapon . | . . . Unidentified Prototypes . | . . . Parts Lost 6 | . . 6 Power 2 | . . 2 Propulsion 2 | . . 2 Utility 1 | . . 1 Weapon 1 | . . 1 Highest Loss Streak 5 | . . 5 To Critical Strikes . | . . . Average Backups 2 | . 2 3 Power . | . . . Propulsion . | . . . Utility . | . . 1 Weapon 1 | . . 2 Tool/Special . | . . . Unused Backups 1 | . . 1 Power . | . . . Propulsion . | . . . Utility . | . . . Weapon 1 | . . 1 Tool/Special . | . . . Average Slot Usage (%) 81 | . 79 82 Engine 12 | . 14 10 Leg 25 | . 28 23 Wheel 2 | . . 3 Device 3 | . 2 3 Storage 2 | . 5 . Processor 2 | . . 4 Protection 4 | . . 7 Energy Gun 22 | . 28 18 Ballistic Gun 3 | . . 5 Special Weapon 2 | . . 3 Peak Build Rating 16 | 5 7 16 Average Rating 7 | 3 5 10 On Entrance 4 | . 5 7 Avg Prop Armor Cover (%) 9 | . . 9 Naked Turns . | . . . Heaviest Build 25 | 7 10 25 Greatest Support 35 | 20 20 35 Greatest Overweight (x) 1 | . . 1 Average Overweight (x) . | . . . Largest Inventory Capacity 5 | 5 5 5 Average Capacity 5 | 5 5 5 Most Carried 5 | 3 5 5 Average Carried 3 | . 2 4 Final Capacity 5 | 5 5 5 Final Carried 5 | 2 2 5 Class Distribution -------------------- 70% | Mutant 29% | Scavenger-Mutant Dominant Class ---------------- Mutant | -10/Materials Mutant | -10/Subcaves Resources | -11 -10 -10 ----------- Run | Yrd Mat Sub Matter Collected 420 | 227 73 120 Remotely . | . . . Salvage Created 218 | 41 73 104 Parts 16 | 3 8 5 Haulers Intercepted . | . . . Recyclers Shooed . | . . . Parts Field Recycled . | . . . Retrieved Matter . | . . . Parts Self-Destructed 17 | . . 17 Prevented . | . . . Parts Restored . | . . . Kills | -11 -10 -10 ------- Run | Yrd Mat Sub Combat Hostiles Destroyed 7 | 1 3 3 Guns 7 | 1 3 3 Classes Destroyed 4 | 1 2 1 Worker 1 | . 1 . Swarmer 4 | . 3 1 Grunt 1 | 1 . . Subdweller 2 | . . 2 Best Kill Streak 3 | 1 3 1 Combat Bots Only 3 | 1 3 1 Max Kills in Single Turn 1 | 1 1 1 Gunslinging . | . . . Exploded . | . . . Melee . | . . . Uniques/NPCs Destroyed . | . . . Combat | -11 -10 -10 -------- Run | Yrd Mat Sub Hostile Shots Fired 88 | 3 18 67 Missed 18 | . 2 16 Hits 70 | 3 16 51 Projectile 70 | 3 16 51 Critical Strikes 1 | . . 1 Damage Taken 1147 | 32 137 978 Core 257 | . 15 242 Absorbed by Shields . | . . . Core Remaining (%) 100 | 100 . . Volleys Fired 38 | 3 8 27 Largest 2 | 1 2 2 Hottest 100 | 40 80 100 Shots Fired 69 | 3 16 50 Gun 66 | 3 16 47 Cannon . | . . . Launcher . | . . . Special 3 | . . 3 Kinetic 14 | . . 14 Thermal 55 | 3 16 36 Explosive . | . . . Electromagnetic . | . . . Robot Hit Streak 29 | 3 6 29 Robot Miss Streak 2 | . 2 2 Penetration Max . | . . . Secondary Targets 2 | . 2 . Max Gunslinging Chain 1 | . 1 . Shots Hit Robots 43 | 3 7 33 Core Hits 17 | 3 4 10 Critical Kills . | . . . Critical Parts Destroyed . | . . . Critical Strikes . | . . . Melee Attacks . | . . . Impact . | . . . Slashing . | . . . Piercing . | . . . Sneak Attacks . | . . . Combat Hostiles . | . . . Follow-up Attacks . | . . . Damage Inflicted 446 | 37 83 326 Guns 442 | 33 83 326 Cannons . | . . . Explosions . | . . . Melee . | . . . Ramming 4 | 4 . . Kinetic 84 | . . 84 Thermal 358 | 33 83 242 Explosive . | . . . Electromagnetic . | . . . Impact . | . . . Slashing . | . . . Piercing . | . . . Highest Corruption . | . . . Average Corruption . | . . . Corruption Purged . | . . . Corruption Blocked . | . . . Overload Shots . | . . . Overflow Damage . | . . . Projectiles . | . . . Explosions . | . . . Melee . | . . . Knockbacks . | . . . Impact . | . . . Kinetic . | . . . Secondary . | . . . Self-Inflicted Damage . | . . . Shots . | . . . Rammed . | . . . Targets Rammed 4 | 4 . . Kicked 4 | 4 . . Crushed . | . . . Highest Temperature 90 | 26 90 8 Average Temperature 31 | 14 37 6 Received Heat Transfer 291 | 18 . 273 Siege Activations . | . . . Martial Activations . | . . . Shielding Activations . | . . . Robots Disrupted . | . . . Combat Hostiles . | . . . Robots Corrupted . | . . . Combat Hostiles . | . . . Parts Fried . | . . . Impact Corruptions . | . . . Robots Melted . | . . . Combat Hostiles . | . . . Parts Melted . | . . . Heat Transferred 800 | 75 175 550 Parts Sabotaged . | . . . Parts Stolen . | . . . Parts Stripped . | . . . Power Chain Reactions . | . . . Alert | -11 -10 -10 ------- Run | Yrd Mat Sub Maximum Alert Level . | . . . Low Security (%) 100 | 100 100 . Level 1 . | . . . Level 2 . | . . . Level 3 . | . . . Level 4 . | . . . Level 5 . | . . . High Security . | . . . Max Security . | . . . Peak Influence 60 | 20 60 . Initial 6 | . 6 . Average 16 | 2 24 . Influence Increases 115 | 20 75 20 Destroy 0b10 Robot/C 100 | 20 60 20 Destroy 0b10 Robot/NC 5 | . 5 . Destroy Leader 10 | . 10 . Influence Decreases 115 | 10 85 20 Entered New Map 4 | . 4 . Time Decay 111 | 10 81 20 Squads Dispatched . | . . . Investigation . | . . . Extermination . | . . . Reinforcement . | . . . Assault . | . . . Garrison . | . . . Intercept . | . . . Searches Triggered . | . . . Construction Impeded . | . . . Haulers Reinforced . | . . . Active Scanning Responses . | . . . Cargo Convoy Interrupts . | . . . Stealth | -11 -10 -10 --------- Run | Yrd Mat Sub Distress Signals . | . . . Communications Jammed . | . . . Distress Signals . | . . . Times Spotted 21 | 1 4 16 Peak Tracking Total 8 | 1 3 8 Tactical Retreats . | . . . Traps | -11 -10 -10 ------- Run | Yrd Mat Sub Traps Triggered . | . . . Indirectly . | . . . Trap Hack Attempts . | . . . Triggered . | . . . Disarmed . | . . . Reprogrammed . | . . . Reused . | . . . Traps Extracted . | . . . Installed . | . . . Triggered . | . . . Machines | -11 -10 -10 ---------- Run | Yrd Mat Sub Machines Disabled . | . . . Max in Single Turn . | . . . Machines Repaired . | . . . Machines Dismantled . | . . . Machines Sabotaged . | . . . Overloaded Fab Kills . | . . . Hacking | -11 -10 -10 --------- Run | Yrd Mat Sub Machines Accessed 1 | . 1 . Terminals . | . . . Fabricators . | . . . Repair Stations . | . . . Recycling Units 1 | . 1 . Scanalyzers . | . . . Garrison Access . | . . . Total Hacks 5 | . 5 . Successful 5 | . 5 . Failed . | . . . Catastrophic . | . . . Database Lockouts . | . . . Manual . | . . . Terminals . | . . . Fabricators . | . . . Repair Stations . | . . . Recycling Units 5 | . 5 . Scanalyzers . | . . . Garrison Access . | . . . Terminal Hacks . | . . . Fabricator Hacks . | . . . Repair Station Hacks . | . . . Recycling Unit Hacks 5 | . 5 . Recycle Component 2 | . 2 . Process 2 | . 2 . Report Inventory 1 | . 1 . Scanalyzer . | . . . Garrison Access Hacks . | . . . Unauthorized Hacks . | . . . Terminals . | . . . Fabricators . | . . . Repair Stations . | . . . Recycling Units . | . . . Scanalyzers . | . . . Garrison Access . | . . . Data Cores Recovered . | . . . Used . | . . . Hacking Detections 1 | . 1 . Full Trace Events 1 | . 1 . Feedback Events . | . . . Feedback Blocked . | . . . Robot Schematics Acquired . | . . . Robots Built . | . . . Authchips . | . . . Time . | . . . Total Robot Build Rating . | . . . Part Schematics Acquired . | . . . Parts Built . | . . . Authchips . | . . . Time . | . . . Total Part Build Rating . | . . . Part Studies Acquired . | . . . Parts Repaired . | . . . Time . | . . . Parts Recycled 2 | . 2 . Recycled Matter 146 | . 146 . Retrieved Matter . | . . . Retrieved Components . | . . . Parts Scanalyzed . | . . . Part Schematics Acquired . | . . . Parts Damaged . | . . . Bothacking | -11 -10 -10 ------------ Run | Yrd Mat Sub Used RIF Installer . | . . . Robots Hacked . | . . . Non-combat . | . . . Combat . | . . . Robot Hacks Applied . | . . . Relay Couplers Released . | . . . Fabnet Peak Effective % . | . . . Robots Rewired . | . . . Allies Hacked . | . . . Hacks Repelled . | . . . Allies | -11 -10 -10 -------- Run | Yrd Mat Sub Total Allies . | . . . Largest Group . | . . . Highest-Rated Group . | . . . Highest-Rated Ally . | . . . Total Orders . | . . . Ally Attacks . | . . . Total Damage . | . . . Kills . | . . . Allies Corrupted . | . . . Allies Melted . | . . . Intel | -11 -10 -10 ------- Run | Yrd Mat Sub Active Infowar (turns) 110 | . 34 76 Optics 69 | . . 69 Sensors 41 | . 34 7 Robot Analysis Total . | . . . Derelict Logs Recovered . | . . . Drone Launches . | . . . Drone Recoveries . | . . . Exploration | -11 -10 -10 ------------- Run | Yrd Mat Sub Turns Passed 608 | 107 185 316 Spaces Moved 372 | 81 120 171 Core 20 | 20 . . Treads . | . . . Legs 265 | 61 120 84 Wheels 87 | . . 87 Hover . | . . . Flight . | . . . Fastest Speed 50 | 50 120 80 Average Speed 120 | 102 120 128 Slowest Speed 190 | 120 120 190 Overloaded Moves . | . . . Propulsion Burnouts . | . . . Robots Hopped . | . . . Potential Cave-ins . | . . . Cave-ins Triggered . | . . . Exploration Rate (%) 12 | 6 17 14 Regions Visited 2 Branch Regions 1 Pre-discovered Areas . | . . . Known Exits Taken . | . . . Unknown Exits Taken 2 | 1 1 . Scrap Searched . | . . . Spaces Dug . | . . . Terrain Destroyed . | . . . Melee . | . . . Projectile . | . . . AOE . | . . . Terrain Rammed . | . . . Walls Destroyed . | . . . Machines Disabled . | . . . Actions | -11 -10 -10 --------- Run | Yrd Mat Sub Total 461 | 100 144 217 Wait 12 | . 10 2 Move 370 | 80 119 171 Hop . | . . . Pick Up 16 | 7 4 5 Fast Attach 4 | . . 4 Attach 10 | 5 2 3 Detach 1 | . . 1 Swap 4 | 1 1 2 Drop 2 | . . 2 Fire 38 | 3 8 27 Melee . | . . . Ram . | . . . Kick 4 | 4 . . Crush . | . . . Escape Stasis . | . . . Rewire . | . . . Trap . | . . . Miscellaneous . | . . . Route ------- -11/Scrapyard -10/Materials -10/Subcaves History --------- Turn | Location | Event 2 | -11/Scrapyard | Met Revision 17 78 | -11/Scrapyard | Discovered new exit (range 8) 108 | -11/Scrapyard | Entered Materials 183 | -10/Materials | Discovered new exit (range 7) 293 | -10/Materials | Entered Subcaves 294 | -10/Subcaves | Approached by a straggling Scientist 432 | -10/Subcaves | Ambushed by Subdwellers from Twisted Machinery 508 | -10/Subcaves | Core integrity fell below 50% 548 | -10/Subcaves | Lost 5 parts (1p2n1u1w) 602 | -10/Subcaves | Ambushed by swarm of Subdwellers 605 | -10/Subcaves | Ambushed by Subdwellers from Twisted Machinery 607 | -10/Subcaves | Core integrity fell below 20% 609 | -10/Subcaves | Destroyed by US-X6I(R) with Subdweller Laser Last Messages --------------- [Achievement: Spot Them First] The achievement interface (ESC then open Records) offers an effective way to explore all of your earned achievements as well as seek out new goals for future runs. Acquired 6 matter. Subatomizers dissect the Sub. Laser. Acquired 4 matter. Subatomizers dissect the Sub. Laser. Ion Engine destroyed. A mess of Twisted Machinery falls from the cavern ceiling. Y3-YFU(R) comes tumbling into view. IP-WGJ(R) emerges from the Twisted Machinery. US-X6I(R) emerges from the Twisted Machinery. Y3-8JM(R) emerges from the Twisted Machinery. G9-ZF3(R) angrily emerges from the Twisted Machinery. QJ-6XY(R) emerges from the Twisted Machinery. 4V-GWK(R) emerges from the Twisted Machinery. Map ----- +----------------------------------------------------+ | | | | | | | | | | | | | | | | | | | | | | | | | ?????????????????????????????????????????????????? | | ?????????????????????????????????????????????????? | | ?????????????????????????????????????????????????? | | ?????????????????????????????????????????????????? | | ?????????????????????????????????????????????????? | | ?????????????????????????????????????????????????? | | ?????????????????????????????????????????????????? | | ????????????????????????????????#????????????????? | | ???????????????????????????????"#????????????????? | | ??????????????????????????????""#????????????????? | | ?????????????????????????????""<#????????????????? | | ?????????????????????######? &<<#????????????????? | | ?????????????????????# RR#R <#?????????????????? | | ?????????????????????## R@RR <#?????????????????? | | ?????????????????????#